fUSD/lending_fUSD_20260527
["ID","MTS","AMOUNT","RATE_DAILY","PERIOD"]
[423107916,1779856232000,-150.0,0.00013204,2]
[423107904,1779856232000,-150.0,0.00013118,2]
[423107903,1779856232000,-150.0,0.00013118,2]
[423107908,1779856232000,-150.0,0.00013169,2]
[423107906,1779856232000,-150.0,0.00013135,2]
[423107910,1779856232000,-2308.73,0.00013185,2]
[423107918,1779856232000,-251.7,0.00013214,2]
[423107930,1779856232000,-150.0,0.00013257,2]
[423107922,1779856232000,-150.0,0.0001323,2]
[423107927,1779856232000,-150.0,0.0001325,2]
[423107924,1779856232000,-166.66,0.00013233,2]
[423107929,1779856232000,-150.0,0.00013255,2]
[423107931,1779856232000,-150.0,0.00013272,2]
[423107936,1779856232000,-164.57,0.00013298,2]
[423107934,1779856232000,-150.0,0.00013289,2]
[423107925,1779856232000,-150.0,0.00013238,2]
[423107932,1779856232000,-150.0,0.0001328,2]
[423107938,1779856232000,-150.0,0.00013306,2]
[423107901,1779856232000,-150.0,0.00013118,2]
[423107920,1779856232000,-150.0,0.00013221,2]
[423107897,1779856232000,-150.0,0.00013118,2]
[423107898,1779856232000,-150.0,0.00013118,2]
[423107939,1779856232000,-150.0,0.00013324,2]
[423107874,1779856232000,-154.33,0.00010827,2]
[423107876,1779856232000,-154.33,0.00011483,2]
[423107875,1779856232000,-154.33,0.00011155,2]
[423107877,1779856232000,-57.90165887,0.00011763,2]
[423107879,1779856232000,-166.66,0.0001213,2]
[423107878,1779856232000,-154.33,0.00011811,2]
[423107880,1779856232000,-154.33,0.00012139,2]
[423107883,1779856232000,-166.66,0.00012498,2]
[423107881,1779856232000,-200.0,0.00012389,2]
[423107884,1779856232000,-181.33,0.00012504,2]
[423107889,1779856232000,-2308.73,0.00012871,2]
[423107887,1779856232000,-760.75,0.00012803,2]
[423107888,1779856232000,-166.66,0.00012866,2]
[423107886,1779856232000,-2308.73,0.00012557,2]
[423107885,1779856232000,-1336.81,0.00012517,2]
[423107882,1779856232000,-154.33,0.00012467,2]
[423107890,1779856232000,-166.71,0.00012879,2]
[423107891,1779856232000,-3326.0,0.00012895,2]
[423107896,1779856232000,-212.08,0.00013056,2]
[423107893,1779856232000,-293.0,0.00012985,2]
[423107894,1779856232000,-332.31,0.00012998,2]
[423107895,1779856232000,-2821.5341965,0.0001305,2]
[423107892,1779856232000,-3243.0,0.0001291,2]
[423107900,1779856232000,-150.0,0.00013118,2]
[423107899,1779856232000,-150.0,0.00013118,2]
[423107941,1779856232000,-150.0,0.00013341,2]
[423107951,1779856232000,-150.0,0.00013442,2]
[423107944,1779856232000,-150.0,0.00013375,2]
[423107972,1779856232000,-150.0,0.00013604,2]
[423107978,1779856232000,-150.0,0.00013667,2]
[423107969,1779856232000,-150.0,0.00013598,2]
[423107971,1779856232000,-150.0,0.00013604,2]
[423107970,1779856232000,-166.66,0.00013601,2]
[423107973,1779856232000,-150.0,0.00013604,2]
[423107988,1779856232000,-150.0,0.00013752,2]
[423107991,1779856232000,-150.0,0.0001378,2]
[423107989,1779856232000,-150.0,0.00013766,2]
[423107979,1779856232000,-150.0,0.00013673,2]
[423107980,1779856232000,-150.0,0.00013678,2]
[423107986,1779856232000,-150.0,0.00013735,2]
[423107981,1779856232000,-150.0,0.00013684,2]
[423107984,1779856232000,-150.0,0.00013701,2]
[423107987,1779856232000,-150.0,0.00013742,2]
[423107983,1779856232000,-150.0,0.00013701,2]
[423107985,1779856232000,-150.0,0.00013718,2]
[423107982,1779856232000,-1100.0,0.000137,5]
[423107993,1779856232000,-150.0,0.00013791,2]
[423107992,1779856232000,-150.0,0.00013787,2]
[423107994,1779856232000,-442.0482,0.00013798,2]
[423107996,1779856232000,-150.0,0.00013804,2]
[423107995,1779856232000,-2300.0,0.000138,5]
[423107997,1779856232000,-150.0,0.00013812,2]
[423107946,1779856232000,-150.0,0.00013392,2]
[423107977,1779856232000,-150.0,0.00013649,2]
[423107975,1779856232000,-150.0,0.00013632,2]
[423107990,1779856232000,-150.0,0.00013769,2]
[423107967,1779856232000,-150.0,0.00013566,2]
[423107943,1779856232000,-150.0,0.00013358,2]
[423107998,1779856232000,-2308.73,0.00013813,2]
[423107950,1779856232000,-150.0,0.00013426,2]
[423107976,1779856232000,-150.0,0.00013648,2]
[423107942,1779856232000,-150.0,0.00013342,2]
[423107945,1779856232000,-150.0,0.00013383,2]
[423107952,1779856232000,-150.0,0.00013444,2]
[423107947,1779856232000,-150.0,0.00013395,2]
[423107949,1779856232000,-150.0,0.00013409,2]
[423107954,1779856232000,-150.0,0.00013461,2]
[423107962,1779856232000,-150.0,0.00013529,2]
[423107963,1779856232000,-150.0,0.00013534,2]
[423107964,1779856232000,-1130.218493,0.00013536,2]
[423107948,1779856232000,-150.0,0.00013409,2]
[423107953,1779856232000,-150.0,0.00013454,2]
[423107965,1779856232000,-150.0,0.00013546,2]
[423107974,1779856232000,-150.0,0.00013615,2]
[423107968,1779856232000,-150.0,0.00013581,2]
[423107961,1779856232000,-163.799731,0.00013524,2]
[423107959,1779856232000,-150.0,0.00013512,2]
[423107966,1779856232000,-150.0,0.00013564,2]
[423107960,1779856232000,-150.0,0.00013515,2]
[423107957,1779856232000,-150.0,0.00013495,2]
[423107955,1779856232000,-150.0,0.00013465,2]
[423107956,1779856232000,-150.0,0.00013478,2]
[423107958,1779856232000,-2308.73,0.00013499,2]
[423108027,1779856233000,-150.0,0.00014045,2]
[423108006,1779856233000,-150.0,0.00013889,2]
[423108013,1779856233000,-150.0,0.00013928,2]
[423108010,1779856233000,-150.0,0.00013907,2]
[423108012,1779856233000,-150.0,0.00013924,2]
[423108011,1779856233000,-150.0,0.00013913,2]
[423108009,1779856233000,-150.0,0.00013903,2]
[423108008,1779856233000,-3439.77499168,0.000139,2]
[423108007,1779856233000,-3500.0,0.000139,5]
[423107999,1779856233000,-150.0,0.00013821,2]
[423108005,1779856233000,-150.0,0.00013881,2]
[423108014,1779856233000,-150.0,0.00013941,2]
[423108004,1779856233000,-150.0,0.00013872,2]
[423108000,1779856233000,-150.0,0.00013838,2]
[423108001,1779856233000,-150.0,0.00013847,2]
[423108002,1779856233000,-150.0,0.00013847,2]
[423108003,1779856233000,-150.0,0.00013855,2]
[423108016,1779856233000,-150.0,0.00013958,2]
[423108015,1779856233000,-150.0,0.00013951,2]
[423108026,1779856233000,-150.0,0.00014044,2]
[423108033,1779856233000,-3.55910118,0.00014079,2]
[423108019,1779856233000,-150.0,0.00013992,2]
[423108020,1779856233000,-150.0,0.00013992,2]
[423108040,1779856233000,-3249.86887117,0.00014089,2]
[423108034,1779856233000,-45298.69265436,0.00014089,2]
[423108038,1779856233000,-836.47829343,0.00014089,2]
[423108032,1779856233000,-194.03146518,0.00014079,2]
[423108031,1779856233000,-16661.18,0.00014079,2]
[423108037,1779856233000,-965.61194919,0.00014089,2]
[423108039,1779856233000,-273.84430536,0.00014089,2]
[423108036,1779856233000,-355.00000001,0.00014089,2]
[423108028,1779856233000,-150.0,0.00014061,2]
[423108035,1779856233000,-1254.41808677,0.00014089,2]
[423108029,1779856233000,-150.0,0.00014078,2]
[423108021,1779856233000,-530.30207749,0.00014,2]
[423108025,1779856233000,-150.0,0.00014027,2]
[423108023,1779856233000,-150.0,0.00014015,2]
[423108024,1779856233000,-150.0,0.0001402,2]
[423108018,1779856233000,-150.0,0.00013975,2]
[423108017,1779856233000,-166.66,0.00013968,2]
[423108022,1779856233000,-150.0,0.00014009,2]
[423108030,1779856233000,-16661.18,0.00014079,2]
[423108058,1779856238000,-150.0,0.00014159,2]
[423108055,1779856238000,-150.0,0.00014147,2]
[423108068,1779856238000,-414.86064995,0.00014189,2]
[423108062,1779856238000,-150.0,0.00014178,2]
[423108072,1779856238000,-284.62108878,0.00014198,2]
[423108060,1779856238000,-150.0,0.00014164,2]
[423108073,1779856238000,-5518.75532902,0.00014198,2]
[423108066,1779856238000,-4174.1682,0.00014188,2]
[423108070,1779856238000,-6214.35980859,0.00014198,2]
[423108052,1779856238000,-150.0,0.00014127,2]
[423108043,1779856238000,-370.44737486,0.00014089,2]
[423108050,1779856238000,-150.0,0.00014095,2]
[423108049,1779856238000,-150.0,0.00014089,2]
[423108047,1779856238000,-150.0,0.00014089,2]
[423108051,1779856238000,-150.0,0.00014112,2]
[423108048,1779856238000,-150.0,0.00014089,2]
[423108046,1779856238000,-1415504.32642488,0.00014089,2]
[423108045,1779856238000,-510.97182158,0.00014089,2]
[423108044,1779856238000,-373.78141635,0.00014089,2]
[423108042,1779856238000,-31006.55880204,0.00014089,2]
[423108041,1779856238000,-2282.48282857,0.0001399,2]
[423108083,1779856238000,-150.0,0.00014251,2]
[423108053,1779856238000,-150.0,0.0001413,2]
[423108074,1779856238000,-1311.81294507,0.00014198,2]
[423108064,1779856238000,-150.0,0.00014181,2]
[423108085,1779856238000,-150.0,0.00014267,2]
[423108075,1779856238000,-1869.01914396,0.00014198,2]
[423108119,1779856238000,-500.0,0.00014288,2]
[423108115,1779856238000,-500.0,0.00014288,2]
[423108111,1779856238000,-500.0,0.00014288,2]
[423108113,1779856238000,-500.0,0.00014288,2]
[423108099,1779856238000,-500.0,0.00014288,2]
[423108097,1779856238000,-1099.01031239,0.00014288,5]
[423108095,1779856238000,-150.0,0.00014284,2]
[423108093,1779856238000,-150.0,0.00014284,2]
[423108105,1779856238000,-500.0,0.00014288,2]
[423108109,1779856238000,-500.0,0.00014288,2]
[423108103,1779856238000,-500.0,0.00014288,2]
[423108117,1779856238000,-500.0,0.00014288,2]
[423108101,1779856238000,-500.0,0.00014288,2]
[423108107,1779856238000,-512.75854852,0.00014288,2]
[423108076,1779856238000,-270.85681001,0.00014198,2]
[423108089,1779856238000,-6214.35980856,0.00014276,2]
[423108078,1779856238000,-150.0,0.00014215,2]
[423108079,1779856238000,-150.0,0.00014228,2]
[423108087,1779856238000,-5958.7836,0.00014274,2]
[423108080,1779856238000,-150.0,0.00014232,2]
[423108077,1779856238000,-150.0,0.00014198,2]
[423108082,1779856238000,-150.0,0.0001425,2]
[423108091,1779856238000,-5518.75532899,0.00014276,2]
[423108081,1779856238000,-150.0,0.00014239,2]
[423108154,1779856239000,-500.0,0.00014288,2]
[423108145,1779856239000,-500.0,0.00014288,2]
[423108151,1779856239000,-500.0,0.00014288,2]
[423108152,1779856239000,-468.17855358,0.00014288,2]
[423108150,1779856239000,-500.0,0.00014288,2]
[423108143,1779856239000,-500.0,0.00014288,2]
[423108146,1779856239000,-500.0,0.00014288,2]
[423108149,1779856239000,-500.0,0.00014288,2]
[423108147,1779856239000,-587.04747977,0.00014288,2]
[423108144,1779856239000,-500.0,0.00014288,2]
[423108134,1779856239000,-500.0,0.00014288,2]
[423108141,1779856239000,-500.0,0.00014288,2]
[423108137,1779856239000,-500.0,0.00014288,2]
[423108135,1779856239000,-500.0,0.00014288,2]
[423108125,1779856239000,-470.83965124,0.00014288,2]
[423108132,1779856239000,-500.0,0.00014288,2]
[423108130,1779856239000,-500.0,0.00014288,2]
[423108128,1779856239000,-500.0,0.00014288,2]
[423108121,1779856239000,-500.0,0.00014288,2]
[423108156,1779856239000,-500.0,0.00014288,2]
[423108139,1779856239000,-500.0,0.00014288,2]
[423108153,1779856239000,-500.0,0.00014288,2]
[423108123,1779856239000,-500.0,0.00014288,2]
[423108158,1779856239000,-500.0,0.00014288,2]
[423108155,1779856239000,-369.13671938,0.00014288,2]
[423108178,1779856239000,-551.06,0.00014288,2]
[423108182,1779856239000,-551.06,0.00014288,2]
[423108181,1779856239000,-551.06,0.00014288,2]
[423108171,1779856239000,-592.01,0.00014288,2]
[423108175,1779856239000,-592.01,0.00014288,2]
[423108172,1779856239000,-592.01,0.00014288,2]
[423108174,1779856239000,-592.01,0.00014288,2]
[423108173,1779856239000,-592.01,0.00014288,2]
[423108170,1779856239000,-592.01,0.00014288,2]
[423108167,1779856239000,-500.0,0.00014288,2]
[423108176,1779856239000,-551.06,0.00014288,2]
[423108168,1779856239000,-592.01,0.00014288,2]
[423108165,1779856239000,-500.0,0.00014288,2]
[423108169,1779856239000,-592.01,0.00014288,2]
[423108160,1779856239000,-500.0,0.00014288,2]
[423108163,1779856239000,-500.0,0.00014288,2]
[423108162,1779856239000,-500.0,0.00014288,2]
[423108166,1779856239000,-500.0,0.00014288,2]
[423108161,1779856239000,-500.0,0.00014288,2]
[423108164,1779856239000,-500.0,0.00014288,2]
[423108159,1779856239000,-528.91242511,0.00014288,2]
[423108157,1779856239000,-500.0,0.00014288,2]
[423108306,1779856240000,-796.52,0.00014583,2]
[423108304,1779856240000,-796.52,0.00014583,2]
[423108303,1779856240000,-796.52,0.00014583,2]
[423108301,1779856240000,-796.52,0.00014583,2]
[423108297,1779856240000,-551.06,0.00014583,2]
[423108298,1779856240000,-551.06,0.00014583,2]
[423108300,1779856240000,-551.06,0.00014583,2]
[423108289,1779856240000,-592.01,0.00014583,2]
[423108299,1779856240000,-551.06,0.00014583,2]
[423108293,1779856240000,-592.01,0.00014583,2]
[423108305,1779856240000,-796.52,0.00014583,2]
[423108291,1779856240000,-592.01,0.00014583,2]
[423108307,1779856240000,-509.01,0.00014583,2]
[423108316,1779856240000,-500.0,0.00014583,2]
[423108302,1779856240000,-796.52,0.00014583,2]
[423108310,1779856240000,-509.01,0.00014583,2]
[423108312,1779856240000,-509.01,0.00014583,2]
[423108308,1779856240000,-509.01,0.00014583,2]
[423108311,1779856240000,-509.01,0.00014583,2]
[423108309,1779856240000,-509.01,0.00014583,2]
[423108315,1779856240000,-500.0,0.00014583,2]
[423108325,1779856240000,-1592.54,0.00014583,2]
[423108326,1779856240000,-6214.35980856,0.00014588,2]
[423108318,1779856240000,-500.0,0.00014583,2]
[423108296,1779856240000,-551.06,0.00014583,2]
[423108317,1779856240000,-500.0,0.00014583,2]
[423108314,1779856240000,-500.0,0.00014583,2]
[423108320,1779856240000,-1592.54,0.00014583,2]
[423108313,1779856240000,-173.0,0.00014583,2]
[423108295,1779856240000,-551.06,0.00014583,2]
[423108272,1779856240000,-258.01515772,0.00014575,2]
[423108288,1779856240000,-592.01,0.00014583,2]
[423108321,1779856240000,-1592.54,0.00014583,2]
[423108259,1779856240000,-150.0,0.00014507,2]
[423108264,1779856240000,-150.0,0.00014558,2]
[423108258,1779856240000,-150.0,0.00014506,2]
[423108265,1779856240000,-150.0,0.00014575,2]
[423108266,1779856240000,-150.0,0.00014575,2]
[423108269,1779856240000,-150.00000029,0.00014575,2]
[423108263,1779856240000,-150.0,0.00014541,2]
[423108268,1779856240000,-150.26724242,0.00014575,2]
[423108260,1779856240000,-6214.35980856,0.0001451,2]
[423108271,1779856240000,-150.0,0.00014575,2]
[423108270,1779856240000,-179.73921444,0.00014575,2]
[423108267,1779856240000,-150.00000001,0.00014575,2]
[423108290,1779856240000,-592.01,0.00014583,2]
[423108261,1779856240000,-5518.75532899,0.0001451,2]
[423108274,1779856240000,-1099.01031239,0.00014582,5]
[423108285,1779856240000,-519.56568703,0.00014583,2]
[423108283,1779856240000,-530.08819485,0.00014583,2]
[423108276,1779856240000,-300.0,0.00014582,2]
[423108275,1779856240000,-1099.01031238,0.00014582,5]
[423108280,1779856240000,-500.0,0.00014583,2]
[423108277,1779856240000,-300.0,0.00014582,2]
[423108284,1779856240000,-500.0,0.00014583,2]
[423108279,1779856240000,-500.0,0.00014583,2]
[423108278,1779856240000,-500.0,0.00014583,2]
[423108282,1779856240000,-500.0,0.00014583,2]
[423108281,1779856240000,-500.0,0.00014583,2]
[423108287,1779856240000,-592.01,0.00014583,2]
[423108273,1779856240000,-150.0,0.00014575,2]
[423108324,1779856240000,-1592.54,0.00014583,2]
[423108262,1779856240000,-150.0,0.00014524,2]
[423108322,1779856240000,-1592.54,0.00014583,2]
[423108364,1779856240000,-796.52,0.00015398,2]
[423108356,1779856240000,-175.2751763,0.00015,2]
[423108355,1779856240000,-212.821354,0.00015,2]
[423108360,1779856240000,-151.0,0.00015,2]
[423108357,1779856240000,-151.0,0.00015,2]
[423108365,1779856240000,-509.01,0.00015398,2]
[423108361,1779856240000,-196.91,0.000153,2]
[423108366,1779856240000,-500.0,0.00015398,2]
[423108359,1779856240000,-151.0,0.00015,2]
[423108369,1779856240000,-33218.9209,0.00015445,2]
[423108379,1779856240000,-500.0,0.0001568,2]
[423108380,1779856240000,-500.0,0.0001568,2]
[423108368,1779856240000,-1592.54,0.00015444,2]
[423108363,1779856240000,-551.06,0.00015398,2]
[423108374,1779856240000,-500.0,0.0001568,2]
[423108384,1779856240000,-374.2529762,0.0001588,2]
[423108376,1779856240000,-500.0,0.0001568,2]
[423108373,1779856240000,-500.0,0.0001568,2]
[423108372,1779856240000,-500.0,0.0001568,2]
[423108377,1779856240000,-500.0,0.0001568,2]
[423108370,1779856240000,-2000.0,0.00015445,2]
[423108375,1779856240000,-500.0,0.0001568,2]
[423108378,1779856240000,-500.0,0.0001568,2]
[423108381,1779856240000,-500.0,0.0001568,2]
[423108382,1779856240000,-500.0,0.0001578,2]
[423108383,1779856240000,-500.0,0.0001588,2]
[423108385,1779856240000,-624.04,0.0001588,2]
[423108386,1779856240000,-624.04,0.0001588,2]
[423108371,1779856240000,-362.758526,0.00015463,2]
[423108362,1779856240000,-592.01,0.00015398,2]
[423108319,1779856240000,-500.0,0.00014583,2]
[423108367,1779856240000,-300.0,0.00015444,2]
[423108323,1779856240000,-1592.54,0.00014583,2]
[423108327,1779856240000,-5518.75532899,0.00014588,2]
[423108329,1779856240000,-6214.35980856,0.00014666,2]
[423108328,1779856240000,-152.13,0.000146,2]
[423108338,1779856240000,-1100.0,0.000149,5]
[423108339,1779856240000,-5518.75532899,0.000149,2]
[423108330,1779856240000,-5518.75532899,0.00014666,2]
[423108331,1779856240000,-4700.0,0.000147,5]
[423108358,1779856240000,-151.0,0.00015,2]
[423108336,1779856240000,-5518.75532899,0.00014822,2]
[423108337,1779856240000,-6214.35980856,0.000149,2]
[423108333,1779856240000,-5518.75532899,0.00014744,2]
[423108340,1779856240000,-718.87,0.00014985,2]
[423108334,1779856240000,-5900.0,0.000148,5]
[423108332,1779856240000,-6214.35980856,0.00014744,2]
[423108342,1779856240000,-300.0,0.00014999,2]
[423108335,1779856240000,-6214.35980856,0.00014822,2]
[423108348,1779856240000,-184.12909,0.00015,2]
[423108349,1779856240000,-184.12909,0.00015,2]
[423108350,1779856240000,-2000.0,0.00015,4]
[423108351,1779856240000,-231.655548,0.00015,2]
[423108347,1779856240000,-184.12909,0.00015,2]
[423108354,1779856240000,-212.821354,0.00015,2]
[423108345,1779856240000,-151.0,0.00015,2]
[423108346,1779856240000,-184.12909,0.00015,2]
[423108344,1779856240000,-151.0,0.00015,2]
[423108343,1779856240000,-4227431.01810896,0.00015,2]
[423108341,1779856240000,-300.0,0.00014999,2]
[423108352,1779856240000,-212.821354,0.00015,2]
[423108353,1779856240000,-212.821354,0.00015,2]
[423108441,1779856241000,-500.0,0.00019999,2]
[423108429,1779856241000,-500.0,0.00019999,2]
[423108440,1779856241000,-500.0,0.00019999,2]
[423108432,1779856241000,-500.0,0.00019999,2]
[423108430,1779856241000,-500.0,0.00019999,2]
[423108424,1779856241000,-500.0,0.00019999,2]
[423108427,1779856241000,-500.0,0.00019999,2]
[423108423,1779856241000,-500.0,0.00019999,2]
[423108426,1779856241000,-500.0,0.00019999,2]
[423108417,1779856241000,-500.0,0.00019999,2]
[423108421,1779856241000,-500.0,0.00019999,2]
[423108425,1779856241000,-500.0,0.00019999,2]
[423108431,1779856241000,-500.0,0.00019999,2]
[423108451,1779856241000,-500.0,0.00019999,2]
[423108434,1779856241000,-500.0,0.00019999,2]
[423108437,1779856241000,-500.0,0.00019999,2]
[423108433,1779856241000,-500.0,0.00019999,2]
[423108436,1779856241000,-500.0,0.00019999,2]
[423108438,1779856241000,-500.0,0.00019999,2]
[423108439,1779856241000,-500.0,0.00019999,2]
[423108450,1779856241000,-500.0,0.00019999,2]
[423108453,1779856241000,-500.0,0.00019999,2]
[423108442,1779856241000,-500.0,0.00019999,2]
[423108452,1779856241000,-500.0,0.00019999,2]
[423108445,1779856241000,-500.0,0.00019999,2]
[423108446,1779856241000,-500.0,0.00019999,2]
[423108443,1779856241000,-500.0,0.00019999,2]
[423108428,1779856241000,-500.0,0.00019999,2]
[423108435,1779856241000,-500.0,0.00019999,2]
[423108422,1779856241000,-500.0,0.00019999,2]
[423108415,1779856241000,-151.0,0.00019178,2]
[423108418,1779856241000,-507.58209004,0.00019999,2]
[423108454,1779856241000,-500.0,0.00019999,2]
[423108388,1779856241000,-624.04,0.0001588,2]
[423108387,1779856241000,-624.04,0.0001588,2]
[423108389,1779856241000,-500.0,0.0001588,2]
[423108392,1779856241000,-500.0,0.0001588,2]
[423108390,1779856241000,-500.0,0.0001588,2]
[423108393,1779856241000,-2000.0,0.00016,4]
[423108395,1779856241000,-273.3,0.00016438,2]
[423108394,1779856241000,-760.75,0.00016004,2]
[423108391,1779856241000,-500.0,0.0001588,2]
[423108398,1779856241000,-351.279491,0.00016438,2]
[423108401,1779856241000,-351.279491,0.00016438,2]
[423108397,1779856241000,-351.279491,0.00016438,2]
[423108403,1779856241000,-275.614806,0.00016438,2]
[423108399,1779856241000,-351.279491,0.00016438,2]
[423108396,1779856241000,-151.0,0.00016438,2]
[423108405,1779856241000,-760.75,0.00017604,2]
[423108406,1779856241000,-351.45850159,0.0001777,2]
[423108408,1779856241000,-2000.0,0.00018,4]
[423108404,1779856241000,-2000.0,0.00017,4]
[423108407,1779856241000,-336.84938086,0.0001777,2]
[423108409,1779856241000,-284.62108874,0.00018378,2]
[423108410,1779856241000,-273.3,0.0001841,2]
[423108411,1779856241000,-500.0,0.00018864,2]
[423108413,1779856241000,-624.04,0.00019141,2]
[423108412,1779856241000,-2000.0,0.00019,4]
[423108414,1779856241000,-151.0,0.00019178,2]
[423108419,1779856241000,-500.0,0.00019999,2]
[423108416,1779856241000,-760.75,0.00019204,2]
[423108420,1779856241000,-500.0,0.00019999,2]
[423108449,1779856241000,-500.0,0.00019999,2]
[423108444,1779856241000,-500.0,0.00019999,2]
[423108447,1779856241000,-500.0,0.00019999,2]
[423108488,1779856241000,-500.0,0.00019999,2]
[423108492,1779856241000,-151.0,0.0002,2]
[423108489,1779856241000,-158.0,0.0002,2]
[423108481,1779856241000,-500.0,0.00019999,2]
[423108482,1779856241000,-500.0,0.00019999,2]
[423108490,1779856241000,-154.0,0.0002,2]
[423108493,1779856241000,-185.0,0.0002,2]
[423108494,1779856241000,-160.0,0.0002,2]
[423108495,1779856241000,-2000.0,0.0002,4]
[423108505,1779856241000,-159.0,0.00021,2]
[423108504,1779856241000,-160.0,0.00021,2]
[423108497,1779856241000,-273.3,0.00020381,2]
[423108499,1779856241000,-206.91929098,0.00020435,2]
[423108484,1779856241000,-500.0,0.00019999,2]
[423108496,1779856241000,-152.13,0.000202,2]
[423108500,1779856241000,-22985.89457091,0.000207,2]
[423108501,1779856241000,-165.0,0.00021,2]
[423108502,1779856241000,-1210.28664732,0.00021,2]
[423108503,1779856241000,-199.75050415,0.00021,2]
[423108515,1779856241000,-185.0,0.00022,2]
[423108510,1779856241000,-10000.0,0.00022,10]
[423108514,1779856241000,-300.0,0.00022,2]
[423108507,1779856241000,-2000.0,0.00021,4]
[423108509,1779856241000,-5000.0,0.00021918,2]
[423108511,1779856241000,-7504.96,0.00022,10]
[423108512,1779856241000,-5628.72,0.00022,10]
[423108508,1779856241000,-225.38970658,0.000215,2]
[423108513,1779856241000,-160.0,0.00022,2]
[423108498,1779856241000,-351.45850159,0.00020435,2]
[423108483,1779856241000,-377.32857268,0.00019999,2]
[423108506,1779856241000,-185.0,0.00021,2]
[423108486,1779856241000,-500.0,0.00019999,2]
[423108448,1779856241000,-500.0,0.00019999,2]
[423108485,1779856241000,-500.0,0.00019999,2]
[423108456,1779856241000,-500.0,0.00019999,2]
[423108467,1779856241000,-500.0,0.00019999,2]
[423108466,1779856241000,-500.0,0.00019999,2]
[423108458,1779856241000,-500.0,0.00019999,2]
[423108455,1779856241000,-500.0,0.00019999,2]
[423108457,1779856241000,-500.0,0.00019999,2]
[423108460,1779856241000,-500.0,0.00019999,2]
[423108459,1779856241000,-500.0,0.00019999,2]
[423108461,1779856241000,-500.0,0.00019999,2]
[423108463,1779856241000,-394.7450554,0.00019999,2]
[423108462,1779856241000,-541.06097329,0.00019999,2]
[423108465,1779856241000,-500.0,0.00019999,2]
[423108468,1779856241000,-500.0,0.00019999,2]
[423108464,1779856241000,-500.0,0.00019999,2]
[423108491,1779856241000,-1200.744465,0.0002,2]
[423108470,1779856241000,-500.0,0.00019999,2]
[423108480,1779856241000,-500.0,0.00019999,2]
[423108473,1779856241000,-500.0,0.00019999,2]
[423108472,1779856241000,-500.0,0.00019999,2]
[423108487,1779856241000,-333.7728042,0.00019999,2]
[423108478,1779856241000,-500.0,0.00019999,2]
[423108474,1779856241000,-500.0,0.00019999,2]
[423108475,1779856241000,-500.0,0.00019999,2]
[423108477,1779856241000,-254.10609733,0.00019999,2]
[423108479,1779856241000,-500.0,0.00019999,2]
[423108476,1779856241000,-500.0,0.00019999,2]
[423108469,1779856241000,-500.0,0.00019999,2]
[423108471,1779856241000,-500.0,0.00019999,2]
[423108562,1779856242000,-167.68,0.00025091,2]